bitfinex/quotes_BTCUSD_20230109
["timestamp","ask_amount","ask_price","bid_price","bid_amount"]
[1673295898848,0.387936,17264.0,17263.0,0.02925473]
[1673295899090,0.026,17264.0,17263.0,0.02925473]
[1673295899586,0.387936,17264.0,17263.0,0.60852773]
[1673295899839,0.026,17264.0,17263.0,0.60852773]
[1673295900087,0.026,17264.0,17263.0,1.18780073]
[1673295901617,0.387936,17264.0,17263.0,1.18780073]
[1673295901871,0.387936,17264.0,17263.0,1.18416373]
[1673295902631,0.026,17264.0,17263.0,1.18416373]
[1673295903439,0.026,17264.0,17263.0,2.10522128]
[1673295903946,0.026,17264.0,17263.0,2.50522128]
[1673295904953,0.026,17264.0,17263.0,3.80133227]
[1673295905202,0.026,17264.0,17263.0,3.97374711]
[1673295905727,0.026,17264.0,17263.0,4.2327484]
[1673295905981,0.026,17264.0,17263.0,5.75864258]
[1673295906587,0.026,17264.0,17263.0,5.93241289]
[1673295906782,0.026,17264.0,17263.0,6.36519182]
[1673295907264,0.026,17264.0,17263.0,6.36615595]
[1673295907538,0.026,17264.0,17263.0,6.10619053]
[1673295907788,0.026,17264.0,17263.0,5.25834465]
[1673295908290,0.026,17264.0,17263.0,5.43121419]
[1673295909306,0.026,17264.0,17263.0,5.60402721]
[1673295910054,0.026,17264.0,17263.0,5.43138787]
[1673295910312,0.026,17264.0,17263.0,5.60402721]
[1673295911548,0.026,17264.0,17263.0,5.76000538]
[1673295911797,0.026,17264.0,17263.0,5.7609364]
[1673295912882,0.026,17264.0,17263.0,6.10788311]
[1673295913062,0.026,17264.0,17263.0,5.60571979]
[1673295916591,0.026,17264.0,17263.0,5.43220162]
[1673295917348,0.026,17264.0,17263.0,5.60571979]
[1673295919091,0.01136251,17264.0,17263.0,5.60571979]
[1673295919616,0.01136251,17264.0,17263.0,4.90571979]
[1673295920380,0.01136251,17264.0,17263.0,4.73216896]
[1673295920630,0.01136251,17264.0,17263.0,5.13216896]
[1673295920884,0.20366251,17264.0,17263.0,3.73277519]
[1673295921175,0.01136251,17264.0,17263.0,3.29916895]
[1673295921421,0.01136251,17264.0,17263.0,3.47261607]
[1673295921694,0.01136251,17264.0,17263.0,2.77261607]
[1673295921954,0.01136251,17264.0,17263.0,2.59916895]
[1673295922718,0.64194851,17264.0,17263.0,0.02561773]
[1673295925302,1.04194851,17264.0,17263.0,0.02561773]
[1673295925645,1.85854828,17264.0,17263.0,0.02561773]
[1673295925814,3.01702828,17264.0,17263.0,0.02561773]
[1673295926312,3.18819439,17264.0,17263.0,0.02561773]
[1673295927103,3.01702828,17264.0,17263.0,0.02561773]
[1673295931109,2.90622828,17264.0,17263.0,0.02561773]
[1673295935947,1.47909828,17264.0,17263.0,0.02561773]
[1673295936202,1.36719828,17264.0,17263.0,0.02561773]
[1673295937454,2.52567828,17264.0,17263.0,0.02561773]
[1673295939018,3.49908439,17264.0,17263.0,0.002363]
[1673295939518,3.75601579,17264.0,17263.0,0.002363]
[1673295939777,3.75601579,17264.0,17263.0,0.02471012]
[1673295940287,3.49908439,17264.0,17263.0,0.02471012]
[1673295941541,3.75601579,17264.0,17263.0,0.02471012]
[1673295941795,0.92062406,17263.0,17259.0,0.00015]
[1673295942064,0.1108,17261.0,17259.0,0.00015]
[1673295942318,0.361936,17260.0,17259.0,0.00015]
[1673295942564,0.4,17260.0,17258.0,2.158846]
[1673295942817,0.63767789,17260.0,17258.0,2.75281167]
[1673295943063,0.4,17260.0,17258.0,2.75281167]
[1673295943521,1.59021315,17261.0,17258.0,2.75281167]
[1673295943522,1.01087115,17261.0,17259.0,0.14]
[1673295943807,1.01087115,17261.0,17258.0,4.02140959]
[1673295944070,0.001,17260.0,17258.0,4.16039859]
[1673295944320,1.24854904,17261.0,17258.0,2.84803892]
[1673295944570,1.01187115,17261.0,17259.0,0.14]
[1673295944826,1.01087115,17261.0,17259.0,0.579401]
[1673295945077,1.01017402,17261.0,17259.0,0.579401]
[1673295946386,1.02917402,17261.0,17259.0,0.579401]
[1673295946902,1.02917402,17261.0,17259.0,1.158808]
[1673295947143,1.02917402,17261.0,17259.0,0.579407]
[1673295948154,1.02917402,17261.0,17259.0,1.158814]
[1673295948410,1.02917402,17261.0,17259.0,0.579407]
[1673295948912,1.02917402,17261.0,17259.0,1.158814]
[1673295949924,0.62917402,17261.0,17259.0,1.158814]
[1673295950425,0.019,17261.0,17260.0,1.0]
[1673295950672,0.019,17261.0,17260.0,3.25210376]
[1673295951159,0.019,17261.0,17260.0,2.85210376]
[1673295951669,0.019,17261.0,17260.0,3.43147776]
[1673295952390,0.8550318,17263.0,17260.0,3.43147776]
[1673295952652,0.8550318,17263.0,17260.0,3.59538165]
[1673295952920,0.8550318,17263.0,17260.0,3.63938165]
[1673295953177,0.8550318,17263.0,17260.0,3.43147776]
[1673295953447,0.8550318,17263.0,17260.0,3.47547776]
[1673295953673,0.8550318,17263.0,17260.0,3.43147776]
[1673295953924,0.8550318,17263.0,17260.0,3.47547776]
[1673295954917,0.8550318,17263.0,17260.0,2.47547776]
[1673295957663,1.09270969,17263.0,17260.0,1.89610376]
[1673295957926,0.8550318,17263.0,17260.0,1.89610376]
[1673295961674,0.8550318,17263.0,17260.0,2.06955088]
[1673295962174,0.8550318,17263.0,17260.0,1.89610376]
[1673295962175,0.361936,17262.0,17260.0,1.89610376]
[1673295962409,0.361936,17261.0,17260.0,1.89610376]
[1673295962649,0.8550318,17263.0,17260.0,2.06955088]
[1673295962903,0.8550318,17263.0,17260.0,2.23345477]
[1673295963161,0.8550318,17263.0,17260.0,2.28571]
[1673295963948,0.8550318,17263.0,17260.0,2.32971]
[1673295964162,0.8550318,17263.0,17260.0,2.06955088]
[1673295964636,0.8550318,17263.0,17260.0,2.32971]
[1673295966854,1.02619791,17263.0,17260.0,2.06955088]
[1673295967599,1.02619791,17263.0,17260.0,2.32971]
[1673295968106,1.02619791,17263.0,17260.0,2.06955088]
[1673295968658,0.8550318,17263.0,17260.0,2.32971]
[1673295968923,0.8550318,17263.0,17261.0,0.71199943]
[1673295969175,0.8550318,17263.0,17261.0,0.53855231]
[1673295969430,0.8550318,17263.0,17261.0,1.29133243]
[1673295969694,0.8550318,17263.0,17261.0,1.87067243]
[1673295969979,0.4550318,17263.0,17261.0,1.87067243]
[1673295970241,0.4740318,17263.0,17261.0,1.87067243]
[1673295971743,0.4740318,17263.0,17261.0,1.69722531]
[1673295972008,0.64519791,17263.0,17260.0,1.33215212]
[1673295972273,0.4,17262.0,17260.0,1.158705]
[1673295972764,0.4,17262.0,17260.0,0.579347]
[1673295973023,0.4,17262.0,17260.0,0.044]
[1673295973273,0.4,17262.0,17259.0,2.88800377]
[1673295973513,0.63767789,17262.0,17259.0,2.88803077]
[1673295973784,0.4,17262.0,17259.0,2.88803077]
[1673295974053,0.8136211,17262.0,17259.0,2.88803077]
[1673295974307,0.8136211,17262.0,17260.0,0.044]
[1673295974561,0.8136211,17262.0,17259.0,2.88802677]
[1673295974799,0.8136211,17262.0,17259.0,2.93199477]
[1673295977050,0.98478721,17262.0,17259.0,2.67183565]
[1673295977295,0.8136211,17262.0,17259.0,2.93199477]
[1673295979317,0.50489083,17261.0,17259.0,1.05698124]
[1673295979560,0.50489083,17261.0,17259.0,0.044]
[1673295979561,0.74256872,17261.0,17259.0,0.044]
[1673295979810,0.50489083,17261.0,17259.0,0.044]
[1673295980307,0.50489083,17261.0,17258.0,1.01301924]
[1673295980551,1.32190872,17261.0,17259.0,0.044]
[1673295980809,0.1119,17260.0,17259.0,0.044]
[1673295981051,1.73627611,17260.0,17259.0,0.044]
[1673295981838,1.73627611,17260.0,17257.0,0.01356289]
[1673295982090,0.873836,17259.0,17257.0,0.01356289]
[1673295982335,0.5119,17259.0,17257.0,0.01356289]
[1673295983083,1.09131,17259.0,17258.0,0.02055377]
[1673295983873,1.453246,17259.0,17258.0,0.02055377]
[1673295984151,1.10831,17259.0,17258.0,0.03155377]
[1673295984402,1.470246,17259.0,17258.0,0.03155377]
[1673295984689,1.687717,17259.0,17258.0,0.03143564]
[1673295984933,2.049653,17259.0,17258.0,0.03143564]
[1673295985434,1.687717,17259.0,17258.0,0.03143564]
[1673295985689,2.049653,17259.0,17258.0,0.03143564]
[1673295986195,2.04895587,17259.0,17258.0,0.03143564]
[1673295986448,1.35764887,17259.0,17258.0,0.03143564]
[1673295986697,0.99571287,17259.0,17258.0,0.03143564]
[1673295987648,0.41630287,17259.0,17258.0,0.03143564]
[1673295989604,0.77823887,17259.0,17258.0,0.03143564]
[1673295990326,0.99570987,17259.0,17258.0,0.03143564]
[1673295990593,1.35764587,17259.0,17258.0,0.03143564]
[1673295990831,0.99570987,17259.0,17258.0,0.011]
[1673295991082,1.35764587,17259.0,17258.0,0.011]
[1673295993556,1.93705287,17259.0,17258.0,0.011]
[1673295994056,1.93705287,17259.0,17258.0,0.02588947]
[1673295997327,2.10385287,17259.0,17258.0,0.02588947]
[1673296001351,2.68325987,17259.0,17258.0,0.02588947]
[1673296002133,2.68325987,17259.0,17258.0,0.011]
[1673296003646,2.10385287,17259.0,17258.0,0.011]
[1673296003891,2.10385287,17259.0,17258.0,0.02595565]
[1673296004857,0.94503887,17259.0,17258.0,0.02595565]
[1673296008108,0.378936,17259.0,17258.0,0.02595565]
[1673296008357,0.017,17259.0,17258.0,0.02595565]
[1673296008604,0.017,17259.0,17258.0,0.60539665]
[1673296010628,0.017,17259.0,17258.0,1.18483765]
[1673296012403,0.09335,17259.0,17258.0,0.60539665]
[1673296012656,0.09335,17259.0,17258.0,0.02595565]
[1673296012939,0.09335,17259.0,17258.0,0.011]
[1673296013416,0.017,17259.0,17258.0,0.011]
[1673296013925,0.017,17259.0,17258.0,0.02580553]
[1673296014425,0.28565,17259.0,17258.0,0.02580553]
[1673296014673,0.68565,17259.0,17258.0,0.02580553]
[1673296014916,1.047586,17259.0,17258.0,0.02580553]
[1673296015648,0.68565,17259.0,17258.0,0.02580553]
[1673296015885,1.047586,17259.0,17258.0,0.02580553]
[1673296016128,0.68565,17259.0,17258.0,0.02580553]
[1673296017136,1.047586,17259.0,17258.0,0.02580553]
[1673296018860,1.21875211,17259.0,17258.0,0.02580553]
[1673296019809,1.79815911,17259.0,17258.0,0.02580553]
[1673296020296,1.21875211,17259.0,17258.0,0.02580553]
[1673296021092,0.378936,17259.0,17258.0,0.70379508]
[1673296021339,0.017,17259.0,17258.0,3.51796682]
[1673296021589,0.017,17259.0,17258.0,3.76726427]
[1673296021833,0.017,17259.0,17258.0,4.51310527]
[1673296022092,0.017,17259.0,17258.0,5.36231901]
[1673296022093,0.01693442,17259.0,17258.0,5.36231901]
[1673296022331,0.01693442,17259.0,17258.0,5.13516539]
[1673296022568,0.01693442,17259.0,17258.0,4.55572439]
[1673296022821,0.01693442,17259.0,17258.0,4.05356107]
[1673296023558,0.01693442,17259.0,17258.0,4.63300207]
[1673296024050,0.01693442,17259.0,17258.0,5.13516539]
[1673296024817,0.01693442,17259.0,17258.0,4.8066031]
[1673296025068,0.01693442,17259.0,17258.0,4.45965639]
[1673296025316,0.01693442,17259.0,17258.0,3.19911656]
[1673296025613,0.01693442,17259.0,17258.0,2.02907708]
[1673296027111,0.09328442,17259.0,17258.0,0.02580553]
[1673296027630,0.69166495,17259.0,17258.0,0.02580553]
[1673296027880,1.22476706,17259.0,17258.0,0.02580553]
[1673296028132,1.05360095,17259.0,17258.0,0.02580553]
[1673296028381,1.22476706,17259.0,17258.0,0.02580553]
[1673296028606,1.05360095,17259.0,17258.0,0.02580553]
[1673296028907,1.80417406,17259.0,17258.0,0.02580553]
[1673296029168,1.63300795,17259.0,17258.0,0.02580553]
[1673296030156,1.46500795,17259.0,17258.0,0.02580553]
[1673296030711,0.44731495,17259.0,17258.0,0.02580553]
[1673296031216,0.01693442,17259.0,17258.0,0.77324653]
[1673296033484,0.01693442,17259.0,17258.0,1.17324653]
[1673296034281,0.01693442,17259.0,17258.0,1.75268753]
[1673296034533,0.01693442,17259.0,17258.0,1.92628856]
[1673296035302,0.01693442,17259.0,17258.0,1.93212853]
[1673296036319,0.01693442,17259.0,17258.0,1.35363478]
[1673296037111,0.01693442,17259.0,17258.0,1.35352746]
[1673296037379,0.01693442,17259.0,17258.0,1.35258021]
[1673296039159,0.41095195,17259.0,17258.0,1.35258021]
[1673296040204,0.01693442,17259.0,17258.0,1.35258021]
[1673296044650,0.01693442,17259.0,17258.0,1.52618124]
[1673296044897,0.01693442,17259.0,17258.0,1.82618124]
[1673296045920,0.01693442,17259.0,17258.0,1.92618124]
[1673296046174,0.01693442,17259.0,17258.0,2.50562224]
[1673296046424,0.01693442,17259.0,17258.0,3.01419999]
[1673296046952,0.01693442,17259.0,17258.0,3.60814766]
[1673296048732,0.01693442,17259.0,17258.0,3.36010974]
[1673296048979,0.01693442,17259.0,17258.0,2.69956991]
[1673296049501,0.01693442,17259.0,17258.0,3.2056841]
[1673296050814,0.01693442,17259.0,17258.0,3.20663135]
[1673296051122,0.01693442,17259.0,17258.0,2.96010974]
[1673296051610,0.01693442,17259.0,17258.0,2.69956991]
[1673296051859,0.01693442,17259.0,17258.0,2.96010974]
[1673296052083,0.01693442,17259.0,17258.0,2.69956991]
[1673296052568,0.01693442,17259.0,17258.0,2.96010974]
[1673296052824,0.01693442,17259.0,17258.0,2.69956991]
[1673296053070,0.01693442,17259.0,17258.0,2.96010974]
[1673296053552,0.01693442,17259.0,17258.0,2.69956991]
[1673296056305,0.01693442,17259.0,17258.0,2.96010974]
[1673296056568,0.01693442,17259.0,17258.0,2.69956991]
[1673296056821,0.01693442,17259.0,17258.0,2.96010974]
[1673296057077,0.01693442,17259.0,17258.0,2.12012891]
[1673296057326,0.01693442,17259.0,17258.0,1.94652788]
[1673296060355,0.01693442,17259.0,17258.0,1.94747513]
[1673296060602,0.01686978,17259.0,17258.0,1.94747513]
[1673296060855,0.01686978,17259.0,17258.0,2.14747513]
[1673296061107,0.01686978,17259.0,17258.0,1.94747513]
[1673296062382,0.01686978,17259.0,17258.0,1.94652788]
[1673296062911,0.09321978,17259.0,17258.0,0.02569821]
[1673296064426,0.45515578,17259.0,17258.0,0.02569821]
[1673296065429,0.09321978,17259.0,17258.0,0.02569821]
[1673296066423,0.67262678,17259.0,17258.0,0.02569821]
[1673296066681,0.01686978,17259.0,17258.0,0.02569821]
[1673296076341,0.01686978,17259.0,17258.0,0.60513921]
[1673296080098,0.01686978,17259.0,17258.0,0.02569821]
[1673296081352,0.01686978,17259.0,17258.0,0.60248721]
[1673296083154,0.01686978,17259.0,17258.0,0.02304621]
[1673296085409,0.01686978,17259.0,17258.0,0.60248721]
[1673296086911,0.01686978,17259.0,17258.0,0.02304621]
[1673296086912,0.42667954,17259.0,17258.0,0.02304621]
[1673296087161,0.95978165,17259.0,17258.0,0.02304621]
[1673296088162,3.15360236,17259.0,17258.0,0.02304621]
[1673296088669,3.74528192,17259.0,17258.0,0.02304621]
[1673296088910,2.88293614,17259.0,17258.0,0.00824068]
[1673296089682,2.30352914,17259.0,17258.0,0.00824068]
[1673296089930,2.13317161,17259.0,17258.0,0.02297782]
[1673296090184,2.53317161,17259.0,17258.0,0.02297782]
[1673296090682,2.70774681,17259.0,17258.0,0.02297782]
[1673296090971,2.53552914,17259.0,17258.0,0.02297782]
[1673296091487,4.73945665,17259.0,17258.0,0.02297782]
[1673296091972,5.31886365,17259.0,17258.0,0.02297782]
[1673296092490,4.72806595,17259.0,17258.0,0.02297782]
[1673296092710,3.69564504,17259.0,17258.0,0.02297782]
[1673296095178,4.72804944,17259.0,17258.0,0.02297782]
[1673296095427,5.31858865,17259.0,17258.0,0.02297782]
[1673296095668,5.31858865,17259.0,17258.0,0.02286519]
[1673296095918,4.72804944,17259.0,17258.0,0.02286519]
[1673296096167,5.31869658,17259.0,17258.0,0.02286519]
[1673296096391,4.72804944,17259.0,17258.0,0.02286519]
[1673296096666,4.12383113,17259.0,17258.0,0.02286519]
[1673296096931,3.69561212,17259.0,17258.0,0.02286519]
[1673296097438,3.11620512,17259.0,17258.0,0.02286519]
[1673296097694,2.94576302,17259.0,17258.0,0.02286519]
[1673296100439,3.11620512,17259.0,17258.0,0.02286519]
[1673296101746,4.7390813,17259.0,17258.0,0.02286519]
[1673296101999,4.3965061,17259.0,17258.0,0.02286519]
[1673296102261,0.4496247,17258.0,17257.0,0.00010957]
[1673296102517,4.1557782,17258.0,17257.0,0.00010957]
[1673296102782,4.7352192,17258.0,17257.0,0.00010957]
[1673296103285,5.3146602,17258.0,17257.0,0.00010957]
[1673296103830,5.3416602,17258.0,17257.0,0.01010957]
[1673296106550,5.16954877,17258.0,17257.0,0.01010957]
[1673296107310,5.33754877,17258.0,17257.0,0.01010957]
[1673296109547,4.97561277,17258.0,17257.0,0.01010957]
[1673296109799,5.33754877,17258.0,17257.0,0.01010957]
[1673296110053,5.33754877,17258.0,17257.0,0.00299797]
[1673296110797,5.07943027,17258.0,17257.0,0.00299797]
[1673296111030,5.33754877,17258.0,17257.0,0.00299797]
[1673296113700,5.68170677,17258.0,17257.0,0.00299797]
[1673296113913,5.5096602,17258.0,17257.0,0.00299797]
[1673296114167,5.68167951,17258.0,17257.0,0.00299797]
[1673296114417,5.33752151,17258.0,17257.0,0.00299797]
[1673296115433,4.49996201,17258.0,17257.0,0.00299797]
[1673296115687,4.3279427,17258.0,17257.0,0.00299797]
[1673296116065,4.49996201,17258.0,17257.0,0.00299797]
[1673296116498,4.3279427,17258.0,17257.0,0.00299797]
[1673296116756,4.49996201,17258.0,17257.0,0.00299797]
[1673296117274,4.33196201,17258.0,17257.0,0.00299797]
[1673296118986,4.59008051,17258.0,17257.0,0.00299797]
[1673296119988,4.5901639,17258.0,17257.0,0.00299797]
[1673296121008,4.7622192,17258.0,17257.0,0.00299797]
[1673296121262,5.3416602,17258.0,17257.0,0.00299797]
[1673296121513,5.51377438,17258.0,17257.0,0.00299797]
[1673296121775,5.3416602,17258.0,17257.0,0.00299797]
[1673296122525,4.7622192,17258.0,17257.0,0.00299797]
[1673296123269,4.57245284,17258.0,17257.0,0.00299797]
[1673296123516,4.59023084,17258.0,17257.0,0.00299797]
[1673296123767,4.93438884,17258.0,17257.0,0.00299797]
[1673296124013,4.57245284,17258.0,17257.0,0.00299797]
[1673296124258,4.7622192,17258.0,17257.0,0.00299797]
[1673296124515,5.3416602,17258.0,17257.0,0.00299797]
[1673296124775,6.37661726,17258.0,17257.0,0.00299797]
[1673296125033,6.96401803,17258.0,17257.0,0.00299797]
[1673296126302,6.61986003,17258.0,17257.0,0.00299797]
[1673296128040,6.04041903,17258.0,17257.0,0.00299797]
[1673296128322,6.38511367,17258.0,17257.0,0.00299797]
[1673296129065,5.62606898,17258.0,17257.0,0.00299797]
[1673296129314,4.7631917,17258.0,17257.0,0.00299797]
[1673296129568,2.18218875,17258.0,17257.0,0.00299797]
[1673296129820,1.83749411,17258.0,17257.0,0.00299797]
[1673296130068,1.83319411,17258.0,17257.0,0.00299797]
[1673296131066,1.02593341,17258.0,17257.0,0.16690186]
[1673296131321,0.59937905,17258.0,17257.0,0.00299797]
[1673296131570,0.427,17258.0,17257.0,0.00299797]
[1673296131818,0.027,17258.0,17257.0,0.00299797]
[1673296132064,0.027,17258.0,17257.0,1.16194597]
[1673296132559,0.027,17258.0,17257.0,2.40420119]
[1673296133314,0.027,17258.0,17257.0,1.90203787]
[1673296135060,0.027,17258.0,17257.0,1.73403787]
[1673296135315,0.027,17258.0,17257.0,1.15456387]
[1673296137885,0.027,17258.0,17257.0,1.73403787]
[1673296140443,0.027,17258.0,17257.0,1.15456387]
[1673296143283,0.027,17258.0,17257.0,0.58247197]
[1673296145219,0.027,17258.0,17257.0,1.16194597]
[1673296147610,0.027,17258.0,17257.0,0.58247197]
[1673296150362,0.027,17258.0,17257.0,1.16194597]
[1673296151298,0.027,17258.0,17257.0,0.58247197]
[1673296157208,0.027,17258.0,17257.0,0.00299797]
[1673296157463,0.4,17257.0,17256.0,1.0885339]
[1673296158244,0.4,17257.0,17256.0,0.00458919]
[1673296158502,0.99324553,17257.0,17256.0,0.00458919]
[1673296158749,1.35518153,17257.0,17256.0,0.00458919]
[1673296159003,1.39218153,17257.0,17256.0,0.01158919]
[1673296159266,1.03024553,17257.0,17256.0,0.01158919]
[1673296159504,1.39218153,17257.0,17256.0,0.01158919]
[1673296159770,1.56018153,17257.0,17256.0,0.01158919]
[1673296160020,1.99111494,17257.0,17256.0,0.01158919]
[1673296160295,1.73256058,17257.0,17256.0,0.01158919]
[1673296160507,1.56456058,17257.0,17256.0,0.01158919]
[1673296161045,2.14403458,17257.0,17256.0,0.01158919]
[1673296161291,1.97165553,17257.0,17256.0,0.01158919]
[1673296161615,1.39218153,17257.0,17256.0,0.01158919]
[1673296163046,1.97165553,17257.0,17256.0,0.01158919]
[1673296163802,2.55112953,17257.0,17256.0,0.01158919]
[1673296164609,2.72350858,17257.0,17256.0,0.01158919]
[1673296165107,2.55112953,17257.0,17256.0,0.01158919]
[1673296165679,2.72350858,17257.0,17256.0,0.01158919]
[1673296166437,2.98206294,17257.0,17256.0,0.01158919]
[1673296166901,2.72350858,17257.0,17256.0,0.01158919]
[1673296167886,2.98206294,17257.0,17256.0,0.01158919]
[1673296168382,3.56153694,17257.0,17256.0,0.01158919]
[1673296170206,3.56153694,17257.0,17256.0,0.00158919]
[1673296170459,3.30298258,17257.0,17256.0,0.00158919]
[1673296170727,3.56153694,17257.0,17256.0,0.00158919]
[1673296174072,3.30298258,17257.0,17256.0,0.00158919]
[1673296177665,3.13060353,17257.0,17256.0,0.00158919]
[1673296177921,3.30298258,17257.0,17256.0,0.00158919]
[1673296180774,3.56153694,17257.0,17256.0,0.00158919]
[1673296181294,3.73385253,17257.0,17256.0,0.00158919]
[1673296181549,3.90185253,17257.0,17256.0,0.00158919]
[1673296182134,5.54075253,17257.0,17256.0,0.00158919]
[1673296183640,6.05872783,17257.0,17256.0,0.00158919]
[1673296183900,6.05872783,17257.0,17255.0,0.01294932]
[1673296183901,0.94522236,17256.0,17255.0,0.01294932]
[1673296184146,4.15083928,17256.0,17255.0,0.01294932]
[1673296186160,4.15933928,17256.0,17255.0,0.01294932]
[1673296186402,4.72051367,17256.0,17255.0,0.01294932]
[1673296186698,4.33177031,17256.0,17255.0,0.01294932]
[1673296187472,4.46877031,17256.0,17255.0,0.01694932]
[1673296187981,4.29633105,17256.0,17255.0,0.01694932]
[1673296188493,4.46817319,17256.0,17255.0,0.01694932]
[1673296188708,4.29633105,17256.0,17255.0,0.01694932]
[1673296189227,5.77553693,17256.0,17255.0,0.01694932]
[1673296189488,5.85354554,17256.0,17255.0,0.01694932]
[1673296190053,6.16204554,17256.0,17255.0,0.01194932]
[1673296191589,5.73184726,17256.0,17255.0,0.01194932]
[1673296191850,5.0186249,17256.0,17255.0,0.01194932]
[1673296192101,5.53609472,17256.0,17255.0,0.01194932]
[1673296192351,5.0186249,17256.0,17255.0,0.01194932]
[1673296192628,0.94587165,17255.0,17254.0,0.00998239]
[1673296192879,5.9733139,17255.0,17254.0,0.00998239]
[1673296193914,5.6797834,17255.0,17254.0,0.01398239]
[1673296194135,5.30191175,17255.0,17254.0,0.01398239]
[1673296194675,5.81573352,17255.0,17254.0,0.01398239]
[1673296194925,5.30191175,17255.0,17254.0,0.01398239]
[1673296195456,5.98738157,17255.0,17254.0,0.01398239]
[1673296195704,5.46991175,17255.0,17254.0,0.01398239]
[1673296195953,5.98528198,17255.0,17254.0,0.01398239]
[1673296196207,6.57197956,17255.0,17254.0,0.01398239]
[1673296196465,6.93763215,17255.0,17254.0,0.01398239]
[1673296196722,7.45114694,17255.0,17254.0,0.01398239]
[1673296196980,6.93592654,17255.0,17254.0,0.01398239]
[1673296198764,5.19733032,17255.0,17254.0,0.01398239]
[1673296199040,4.6787409,17255.0,17254.0,0.01398239]
[1673296199574,5.66522158,17255.0,17254.0,0.01398239]
[1673296199862,4.8467487,17255.0,17254.0,0.01398239]
[1673296200350,3.34335151,17255.0,17254.0,0.17788628]
[1673296200373,2.99988857,17255.0,17254.0,0.01398239]
[1673296200643,2.16273761,17255.0,17254.0,0.01398239]
[1673296201414,2.15910161,17255.0,17254.0,0.01398239]
[1673296202470,2.41671057,17255.0,17254.0,0.01398239]
[1673296203014,2.99625257,17255.0,17254.0,0.01398239]
[1673296203531,2.73864361,17255.0,17254.0,0.01398239]
[1673296204059,3.74751269,17255.0,17254.0,0.01398239]
[1673296204322,0.94064304,17254.0,17253.0,0.00695458]
[1673296204575,2.89113273,17254.0,17253.0,0.00695458]
[1673296204822,3.97840919,17254.0,17253.0,0.00695458]
[1673296205619,4.11440919,17254.0,17253.0,0.01095458]
[1673296206134,3.94271212,17254.0,17253.0,0.01095458]
[1673296206394,3.80671212,17254.0,17253.0,0.00695458]
[1673296206648,3.80671212,17254.0,17253.0,0.01095458]
[1673296206649,3.94271212,17254.0,17253.0,0.01095458]
[1673296207409,4.28617506,17254.0,17253.0,0.01095458]
[1673296207665,3.94271212,17254.0,17253.0,0.01095458]
[1673296208009,3.80671212,17254.0,17253.0,0.00695458]
[1673296208200,3.80671212,17254.0,17253.0,0.01095458]
[1673296208201,3.94271212,17254.0,17253.0,0.01095458]
[1673296209729,4.28617506,17254.0,17253.0,0.01095458]
[1673296209982,3.9427346,17254.0,17253.0,0.01095458]
[1673296210236,4.11440919,17254.0,17253.0,0.01095458]
[1673296211230,4.28621474,17254.0,17253.0,0.01095458]
[1673296211495,3.9427518,17254.0,17253.0,0.01095458]
[1673296212022,3.68510959,17254.0,17253.0,0.01095458]
[1673296212278,1.43857904,17254.0,17253.0,0.01095458]
[1673296215391,2.01815404,17254.0,17253.0,0.01095458]
[1673296215702,2.18995959,17254.0,17253.0,0.01095458]
[1673296216419,2.76953459,17254.0,17253.0,0.01095458]
[1673296216677,3.0271768,17254.0,17253.0,0.01095458]
[1673296217740,3.27855517,17254.0,17253.0,0.01095458]
[1673296218004,5.1873311,17254.0,17253.0,0.01095458]
[1673296218323,4.75803626,17254.0,17253.0,0.01095458]
[1673296218510,4.76653626,17254.0,17253.0,0.01095458]
[1673296218772,6.33673626,17254.0,17253.0,0.01095458]
[1673296219020,6.85195666,17254.0,17253.0,0.01095458]
[1673296219532,0.02162546,17252.0,17249.0,0.01562276]
[1673296219801,0.168,17250.0,17249.0,0.01562276]
[1673296220039,1.74732389,17250.0,17249.0,0.01562276]
[1673296220285,1.509646,17250.0,17249.0,0.01562276]
[1673296221052,1.513646,17250.0,17249.0,0.03062276]
[1673296221812,1.68556285,17250.0,17249.0,0.03062276]
[1673296222069,3.9850386,17250.0,17249.0,0.03062276]
[1673296222317,5.01328041,17250.0,17249.0,0.03062276]
[1673296222574,4.15695545,17250.0,17249.0,0.03062276]
[1673296222838,5.01329407,17250.0,17249.0,0.03062276]
[1673296223099,5.59269359,17250.0,17249.0,0.03062276]
[1673296223345,5.24485143,17250.0,17249.0,0.01562276]
[1673296223597,5.65169521,17250.0,17249.0,0.01962276]
[1673296223859,5.58869521,17250.0,17249.0,0.01562276]
[1673296224114,5.72469521,17250.0,17249.0,0.01862276]
[1673296225405,4.86835659,17250.0,17249.0,0.01862276]
[1673296225925,4.54674474,17250.0,17249.0,0.01862276]
[1673296226190,4.28896553,17250.0,17249.0,0.01862276]
[1673296226448,5.14531521,17250.0,17249.0,0.01862276]
[1673296226957,4.11688152,17250.0,17249.0,0.01862276]
[1673296227712,4.11688152,17250.0,17249.0,0.00862276]
[1673296228515,4.27631752,17250.0,17249.0,0.00862276]
[1673296229790,4.11688152,17250.0,17249.0,0.00862276]
[1673296230304,3.94888152,17250.0,17249.0,0.00862276]
[1673296231593,3.77681922,17250.0,17249.0,0.00862276]
[1673296232879,2.9394011,17250.0,17249.0,0.00862276]
[1673296234140,3.19710922,17250.0,17249.0,0.00862276]
[1673296234391,3.77650028,17250.0,17249.0,0.00862276]
[1673296236161,3.60990028,17250.0,17249.0,0.00862276]
[1673296236412,2.7728011,17250.0,17249.0,0.00862276]
[1673296236664,2.60101962,17250.0,17249.0,0.00862276]
[1673296237513,2.02130962,17250.0,17249.0,0.00862276]
[1673296237989,1.44159962,17250.0,17249.0,0.00862276]
[1673296238245,0.136,17250.0,17249.0,0.58836576]
[1673296239015,0.136,17250.0,17249.0,0.57865276]
[1673296239278,0.497936,17250.0,17248.0,1.17549573]
[1673296239524,0.497936,17250.0,17248.0,0.70783373]
[1673296239525,0.136,17250.0,17248.0,0.70783373]
[1673296240043,0.715712,17250.0,17248.0,0.12807973]
[1673296241039,0.714712,17250.0,17248.0,0.13107973]
[1673296241846,0.5480248,17250.0,17248.0,0.13107973]
[1673296242095,0.52652245,17249.0,17248.0,0.01897973]
[1673296242341,2.51972593,17249.0,17248.0,0.01897973]
[1673296242843,2.51972593,17249.0,17248.0,0.01597973]
[1673296243095,4.58973026,17249.0,17248.0,0.01897973]
[1673296243354,0.00768052,17247.0,17246.0,0.00434894]
[1673296243606,1.93869121,17247.0,17246.0,0.00434894]
[1673296243858,1.95867852,17247.0,17246.0,0.00434894]
[1673296244375,3.08266436,17247.0,17246.0,0.00434894]
[1673296244626,3.04729916,17247.0,17246.0,0.00434894]
[1673296244887,3.47674115,17247.0,17246.0,0.00434894]
[1673296245634,3.42274115,17247.0,17246.0,0.00434894]
[1673296245878,3.38589949,17247.0,17246.0,0.00434894]
[1673296246128,3.59445308,17247.0,17246.0,0.00434894]